[Event "58th Akiba Rubinstein B 2022"]
[Site "Polanica-Zdroj"]
[Date "2022.08.20"]
[Round "8.1"]
[White "Chmiel, Marcin"]
[Black "Owoc, Jakub"]
[Result "1-0"]
[ECO "D26"]
[WhiteElo "2192"]
[BlackElo "1756"]
[Annotator "NA RC"]
[PlyCount "55"]
[EventDate "2022.08.13"]
[EventCountry "POL"]
[SourceTitle "playchess.com"]
[Source "ChessBase"]
[SourceQuality "1"]
[TimeControl "40/5400+30:1800+30"]

1. Nf3 {[%emt 0:00:21]} Nf6 {[%emt 0:00:15]} 2. d4 {[%emt 0:00:39]} d5 {[%emt 0:01:35]} 3. c4 {[%emt 0:00:12]} dxc4 {[%emt 0:00:04]} 4. e3 {[%emt 0:00:11]} e6 {[%emt 0:00:05]} 5. Bxc4 {[%emt 0:00:11]} a6 {[%emt 0:00:03]} 6. O-O {[%emt 0:00:39]} b5 {[%emt 0:00:08]} 7. Bd3 {[%emt 0:00:48]} Bb7 {[%emt 0:00:06]} 8. a4 {[%emt 0:00:52]} b4 {[%emt 0:00:37]} 9. Nbd2 {[%emt 0:05:44]} Nbd7 {[%emt 0:02:27]} 10. Qe2 {[%emt 0:02:57]} Be7 {[%emt 0:02:47]} 11. a5 {[%emt 0:07:31]} c5 {[%emt 0:01:36]} 12. Nc4 {[%emt 0:00:58]} O-O {[%emt 0:03:05]} 13. Rd1 {[%emt 0:07:08]} Qc7 {[%emt 0:05:26]} 14. Bd2 {[%emt 0:01:38]} Ne4 {[%emt 0:02:18]} 15. Be1 {[%emt 0:02:15]} Rfd8 {[%emt 0:07:54]} 16. Nfe5 {[%emt 0:06:47]} Nxe5 {[%emt 0:01:35]} 17. dxe5 {[%emt 0:00:59]} f6 {[%emt 0:05:19]} 18. f3 {[%emt 0:06:14]} Ng5 {[%emt 0:01:21]} 19. exf6 {[%emt 0:03:59]} Bxf6 {[%emt 0:00:43]} 20. Bg3 {[%emt 0:02:17]} Qc6 {[%emt 0:04:41]} 21. h4 {[%emt 0:04:13]} Nf7 {[%emt 0:00:26]} 22. Qc2 {[%emt 0:03:50]} h6 {[%emt 0:05:40]} 23. Bh7+ {[%emt 0:03:02]} Kf8 {[%emt 0:01:13]} 24. Nb6 {[%emt 0:01:24]} Ra7 {[%emt 0:02:21]} 25. Rxd8+ {[%emt 0:02:02]} Bxd8 {[%emt 0:02:23]} 26. Nd7+ {[%emt 0:10:20]} Ke8 {[%emt 0:05:50]} 27. Nxc5 {[%emt 0:01:45]} Ra8 {[%emt 0:02:04]} 28. Be4 {[%emt 0:00:58]} 1-0

[Event "58th Akiba Rubinstein B 2022"]
[Site "Polanica-Zdroj"]
[Date "2022.08.20"]
[Round "8.2"]
[White "Buchholz, Maja"]
[Black "Zerebiec, Maurycy"]
[Result "0-1"]
[ECO "A37"]
[WhiteElo "1879"]
[BlackElo "1915"]
[Annotator "NA RC"]
[PlyCount "84"]
[EventDate "2022.08.13"]
[EventCountry "POL"]
[SourceTitle "playchess.com"]
[Source "ChessBase"]
[SourceQuality "1"]
[TimeControl "40/5400+30:1800+30"]

1. c4 {[%emt 0:00:02]} c5 {[%emt 0:00:12]} 2. g3 {[%emt 0:00:06]} Nc6 {[%emt 0:00:02]} 3. Bg2 {[%emt 0:00:09]} g6 {[%emt 0:00:03]} 4. Nc3 {[%emt 0:00:07]} Bg7 {[%emt 0:00:02]} 5. Nf3 {[%emt 0:00:09]} e5 {[%emt 0:00:04]} 6. O-O {[%emt 0:00:11]} d6 {[%emt 0:00:02]} 7. a3 {[%emt 0:00:07]} Nge7 {[%emt 0:00:06]} 8. b4 {[%emt 0:00:34]} Be6 {[%emt 0:02:16]} 9. Ng5 {[%emt 0:00:25]} Bxc4 {[%emt 0:26:09]} 10. d3 {[%emt 0:00:22]} e4 {[%emt 0:06:16]} 11. Ncxe4 {[%emt 0:11:34]} Bd5 {[%emt 0:04:58]} 12. bxc5 {[%emt 0:11:24]} dxc5 {[%emt 0:08:12]} 13. Bf4 {[%emt 0:03:50]} O-O {[%emt 0:02:19]} 14. Nd6 {[%emt 0:19:17]} Bxg2 {[%emt 0:03:34]} 15. Kxg2 {[%emt 0:00:26]} Nd5 {[%emt 0:01:29]} 16. Nxb7 {[%emt 0:14:09]} Nxf4+ {[%emt 0:06:27]} 17. gxf4 {[%emt 0:00:39]} Qe7 {[%emt 0:00:36]} 18. Rb1 {[%emt 0:01:41]} Rab8 {[%emt 0:00:19]} 19. Qa4 {[%emt 0:01:00]} Nd4 {[%emt 0:01:56]} 20. Na5 {[%emt 0:02:50]} Rxb1 {[%emt 0:01:07]} 21. Rxb1 {[%emt 0:00:13]} Qxe2 {[%emt 0:00:34]} 22. Qd1 {[%emt 0:08:29]} Qxd1 {[%emt 0:04:06]} 23. Rxd1 {[%emt 0:00:06]} f5 {[%emt 0:00:31]} 24. Re1 {[%emt 0:05:38]} Bf6 {[%emt 0:01:41]} 25. Rb1 {[%emt 0:03:17]} h6 {[%emt 0:01:58]} 26. Nh3 {[%emt 0:00:58]} Kg7 {[%emt 0:01:04]} 27. Nc4 {[%emt 0:03:28]} Rf7 {[%emt 0:01:48]} 28. Ne5 {[%emt 0:02:30]} Bxe5 {[%emt 0:05:16]} 29. fxe5 {[%emt 0:00:11]} g5 {[%emt 0:00:04]} 30. f4 {[%emt 0:01:34]} g4 {[%emt 0:00:21]} 31. Ng1 {[%emt 0:00:17]} Rd7 {[%emt 0:00:15]} 32. Kg3 {[%emt 0:02:11]} Nc2 {[%emt 0:01:47]} 33. Rb3 {[%emt 0:01:07]} Ne1 {[%emt 0:00:15]} 34. Kf2 {[%emt 0:01:00]} Nxd3+ {[%emt 0:00:17]} 35. Ke3 {[%emt 0:00:14]} Ne1 {[%emt 0:03:47]} 36. Ne2 {[%emt 0:00:33]} Nc2+ {[%emt 0:00:38]} 37. Kf2 {[%emt 0:00:08]} Rd2 {[%emt 0:00:06]} 38. Rc3 {[%emt 0:01:48]} Nd4 {[%emt 0:00:10]} 39. Re3 {[%emt 0:00:07]} h5 {[%emt 0:00:16]} 40. Ke1 {[%emt 0:00:00]} Rxe2+ {[%emt 0:00:00]} 41. Rxe2 {[%emt 0:01:18]} Nxe2 {[%emt 0:00:04]} 42. Kxe2 {[%emt 0:00:07]} h4 {[%emt 0:00:02]} 0-1

[Event "58th Akiba Rubinstein B 2022"]
[Site "Polanica-Zdroj"]
[Date "2022.08.20"]
[Round "8.3"]
[White "Terkiewicz, Bruno"]
[Black "Lukasiewicz, Anna"]
[Result "1-0"]
[ECO "D31"]
[WhiteElo "1473"]
[BlackElo "1954"]
[Annotator "NA RC"]
[PlyCount "79"]
[EventDate "2022.08.13"]
[EventCountry "POL"]
[SourceTitle "playchess.com"]
[Source "ChessBase"]
[SourceQuality "1"]
[TimeControl "40/5400+30:1800+30"]

1. d4 d5 2. c4 e6 3. Nc3 Be7 4. cxd5 exd5 5. Nf3 Nf6 6. Bg5 c6 7. e3 Bf5 8. Bd3 Bxd3 9. Qxd3 O-O 10. Bxf6 Bxf6 11. b4 a6 12. O-O Nd7 13. a4 Nb6 14. Rfc1 Nc4 15. b5 axb5 16. axb5 Qe7 17. bxc6 bxc6 18. Nd2 Nd6 19. Na4 Rfc8 20. Nc5 g6 21. Qc2 {[%emt 0:17:12]} Nf5 {[%emt 0:57:22]} 22. Nf3 {[%emt 0:06:16]} h5 {[%emt 0:07:08]} 23. Nb3 {[%emt 0:09:36]} Rxa1 {[%emt 0:02:08]} 24. Rxa1 {[%emt 0:01:29]} Kg7 {[%emt 0:05:29]} 25. Ra6 {[%emt 0:08:15]} Qe8 {[%emt 0:02:05]} 26. h3 {[%emt 0:06:16]} Qd7 {[%emt 0:11:54]} 27. Nc5 {[%emt 0:02:49]} Qe7 {[%emt 0:01:26]} 28. Qa4 {[%emt 0:16:26]} Qe8 {[%emt 0:01:56]} 29. Qc2 {[%emt 0:16:50]} Qe7 {[%emt 0:01:43]} 30. Qc1 {[%emt 0:02:24]} g5 {[%emt 0:04:05]} 31. Nd3 {[%emt 0:04:44]} g4 {[%emt 0:01:45]} 32. Nfe5 {[%emt 0:01:08]} Bxe5 {[%emt 0:03:02]} 33. Nxe5 {[%emt 0:00:15]} Qg5 {[%emt 0:01:55]} 34. hxg4 {[%emt 0:03:38]} Nxd4 {[%emt 0:01:12]} 35. Qa1 Qxe5 36. exd4 Qg5 37. gxh5 Qxh5 38. Ra3 Rh8 39. Rg3+ Kf6 40. Rh3 1-0

[Event "58th Akiba Rubinstein B 2022"]
[Site "Polanica-Zdroj"]
[Date "2022.08.20"]
[Round "8.4"]
[White "Mielczarek, Daniel"]
[Black "Lukasik, Zuzanna"]
[Result "0-1"]
[ECO "D02"]
[WhiteElo "1912"]
[BlackElo "1700"]
[Annotator "NA RC"]
[PlyCount "87"]
[EventDate "2022.08.13"]
[EventCountry "POL"]
[SourceTitle "playchess.com"]
[Source "ChessBase"]
[SourceQuality "1"]
[TimeControl "40/5400+30:1800+30"]

1. Nf3 {[%emt 0:00:05]} d5 {[%emt 0:00:39]} 2. d4 {[%emt 0:00:13]} c5 {[%emt 0:01:04]} 3. c3 {[%emt 0:00:48]} e6 {[%emt 0:01:33]} 4. Bf4 {[%emt 0:02:02]} Nc6 {[%emt 0:01:32]} 5. e3 {[%emt 0:01:39]} Nf6 {[%emt 0:00:33]} 6. Nbd2 {[%emt 0:00:32]} Bd6 {[%emt 0:02:00]} 7. Bg5 {[%emt 0:02:17]} h6 {[%emt 0:01:59]} 8. Bh4 {[%emt 0:01:00]} g5 {[%emt 0:05:27]} 9. Bg3 {[%emt 0:00:11]} Nh5 {[%emt 0:27:54]} 10. Bxd6 {[%emt 0:06:36]} Qxd6 {[%emt 0:00:08]} 11. Ne5 {[%emt 0:00:24]} Nf6 {[%emt 0:08:23]} 12. h4 {[%emt 0:02:31]} Rg8 {[%emt 0:08:51]} 13. Qf3 {[%emt 0:04:43]} Nxe5 {[%emt 0:00:46]} 14. Qxf6 {[%emt 0:01:27]} Ng4 {[%emt 0:01:27]} 15. Qf3 {[%emt 0:00:57]} f5 {[%emt 0:01:59]} 16. hxg5 {[%emt 0:01:46]} hxg5 {[%emt 0:02:57]} 17. Bb5+ {[%emt 0:01:16]} Bd7 {[%emt 0:02:46]} 18. Bxd7+ {[%emt 0:01:45]} Qxd7 {[%emt 0:01:14]} 19. dxc5 {[%emt 0:00:55]} Qb5 {[%emt 0:02:37]} 20. Nb3 {[%emt 0:03:12]} O-O-O {[%emt 0:02:06]} 21. Qe2 {[%emt 0:01:48]} Qd7 {[%emt 0:03:23]} 22. O-O-O {[%emt 0:01:43]} Qa4 {[%emt 0:04:15]} 23. f3 {[%emt 0:02:43]} Ne5 {[%emt 0:05:57]} 24. Kb1 {[%emt 0:03:15]} g4 {[%emt 0:03:06]} 25. Nd4 {[%emt 0:04:00]} gxf3 {[%emt 0:01:28]} 26. gxf3 {[%emt 0:00:12]} Rg6 {[%emt 0:00:53]} 27. Rdg1 {[%emt 0:02:35]} Qe8 {[%emt 0:03:45]} 28. Qh2 {[%emt 0:10:12]} Nc4 {[%emt 0:02:28]} 29. Qf4 {[%emt 0:03:19]} a6 {[%emt 0:01:46]} 30. b3 {[%emt 0:02:10]} Na3+ {[%emt 0:00:10]} 31. Kb2 {[%emt 0:00:54]} Nb5 {[%emt 0:00:26]} 32. Nxb5 {[%emt 0:00:47]} axb5 {[%emt 0:00:07]} 33. Rh7 {[%emt 0:03:39]} Rd7 {[%emt 0:00:54]} 34. Rxd7 {[%emt 0:11:30]} Kxd7 {[%emt 0:00:22]} 35. Qd6+ {[%emt 0:00:08]} Kc8 {[%emt 0:00:34]} 36. Rxg6 {[%emt 0:00:10]} Qxg6 {[%emt 0:00:12]} 37. Ka3 {[%emt 0:00:11]} b4+ {[%emt 0:02:24]} 38. Kxb4 {[%emt 0:00:40]} Qf6 {[%emt 0:00:25]} 39. f4 {[%emt 0:00:56]} Qf7 {[%emt 0:00:28]} 40. a4 {[%emt 0:00:00]} Qe8 {[%emt 0:00:00]} 41. Ka5 {[%emt 0:01:47]} e5 {[%emt 0:01:15]} 42. Kb6 {[%emt 0:01:06]} Qf7 {[%emt 0:00:36]} 43. fxe5 {[%emt 0:00:33]} d4 {[%emt 0:00:49]} 44. e6 {[%emt 0:00:11]} 0-1

[Event "58th Akiba Rubinstein B 2022"]
[Site "Polanica-Zdroj"]
[Date "2022.08.20"]
[Round "8.5"]
[White "Kossowski, Pawel"]
[Black "Graff, Slawomir"]
[Result "1/2-1/2"]
[ECO "C10"]
[WhiteElo "1737"]
[BlackElo "1782"]
[Annotator "NA RC"]
[PlyCount "96"]
[EventDate "2022.08.13"]
[EventCountry "POL"]
[SourceTitle "playchess.com"]
[Source "ChessBase"]
[SourceQuality "1"]
[TimeControl "40/5400+30:1800+30"]

1. e4 {[%emt 0:00:02]} e6 {[%emt 0:00:09]} 2. d4 {[%emt 0:00:14]} d5 {[%emt 0:00:04]} 3. Nd2 {[%emt 0:00:04]} dxe4 {[%emt 0:00:50]} 4. Nxe4 {[%emt 0:00:07]} Nd7 {[%emt 0:00:14]} 5. Nf3 {[%emt 0:00:11]} Ngf6 {[%emt 0:00:25]} 6. Nxf6+ {[%emt 0:00:17]} Nxf6 {[%emt 0:00:09]} 7. Bd3 {[%emt 0:00:25]} c5 {[%emt 0:00:26]} 8. dxc5 {[%emt 0:00:06]} Bxc5 {[%emt 0:00:07]} 9. O-O {[%emt 0:00:25]} O-O {[%emt 0:00:13]} 10. Bg5 {[%emt 0:00:12]} b6 {[%emt 0:00:31]} 11. Qe2 {[%emt 0:02:21]} Bb7 {[%emt 0:01:09]} 12. Rad1 {[%emt 0:01:11]} Qc7 {[%emt 0:00:33]} 13. Bxf6 {[%emt 0:07:42]} gxf6 {[%emt 0:00:09]} 14. Be4 {[%emt 0:01:17]} Rfd8 {[%emt 0:01:32]} 15. Bxb7 {[%emt 0:06:22]} Qxb7 {[%emt 0:00:16]} 16. Rd3 {[%emt 0:08:24]} Rxd3 {[%emt 0:06:47]} 17. Qxd3 {[%emt 0:00:51]} Be7 {[%emt 0:03:26]} 18. Rd1 {[%emt 0:03:16]} Rd8 {[%emt 0:02:16]} 19. Qe2 {[%emt 0:00:21]} Rxd1+ {[%emt 0:02:36]} 20. Qxd1 {[%emt 0:00:19]} Qe4 {[%emt 0:02:09]} 21. Qd3 {[%emt 0:07:32]} f5 {[%emt 0:09:32]} 22. Qxe4 {[%emt 0:03:37]} fxe4 {[%emt 0:00:10]} 23. Nd2 {[%emt 0:00:18]} f5 {[%emt 0:01:42]} 24. Kf1 {[%emt 0:02:16]} Kf7 {[%emt 0:10:03]} 25. Ke2 {[%emt 0:02:13]} e5 {[%emt 0:08:05]} 26. a4 {[%emt 0:03:23]} h5 {[%emt 0:02:25]} 27. a5 {[%emt 0:03:14]} bxa5 {[%emt 0:05:14]} 28. Nc4 {[%emt 0:00:42]} a4 {[%emt 0:00:58]} 29. Nxe5+ {[%emt 0:01:32]} Ke6 {[%emt 0:00:29]} 30. Nc4 {[%emt 0:01:49]} Kd5 {[%emt 0:09:10]} 31. Ne3+ {[%emt 0:02:40]} Ke5 {[%emt 0:02:44]} 32. g3 {[%emt 0:03:48]} Bc5 {[%emt 0:09:12]} 33. Nc4+ {[%emt 0:14:03]} Kd5 {[%emt 0:03:12]} 34. Ne3+ {[%emt 0:00:06]} Ke5 {[%emt 0:00:45]} 35. Nc4+ {[%emt 0:02:09]} Kd5 {[%emt 0:00:19]} 36. Ne3+ {[%emt 0:00:18]} Ke6 {[%emt 0:00:11]} 37. Nc4 {[%emt 0:04:34]} f4 {[%emt 0:04:56]} 38. f3 {[%emt 0:10:07]} Kf5 {[%emt 0:06:20]} 39. fxe4+ {[%emt 0:02:04]} Kxe4 {[%emt 0:00:20]} 40. Nd2+ {[%emt 0:00:00]} Kf5 {[%emt 0:00:00]} 41. Kf3 {[%emt 0:01:08]} fxg3 {[%emt 0:14:38]} 42. hxg3 {[%emt 0:02:19]} Bf8 {[%emt 0:03:36]} 43. Ne4 {[%emt 0:02:22]} Ke5 {[%emt 0:03:43]} 44. Nc3 {[%emt 0:00:59]} a3 {[%emt 0:00:20]} 45. bxa3 {[%emt 0:00:06]} Bxa3 {[%emt 0:00:13]} 46. Nb5 {[%emt 0:00:26]} Bc5 {[%emt 0:01:14]} 47. Nxa7 {[%emt 0:00:10]} Bxa7 {[%emt 0:00:09]} 48. g4 {[%emt 0:00:06]} hxg4+ {[%emt 0:01:00]} 1/2-1/2

[Event "58th Akiba Rubinstein B 2022"]
[Site "Polanica-Zdroj"]
[Date "2022.08.20"]
[Round "8.6"]
[White "Smukowski, Bartosz"]
[Black "Nowak, Roksana"]
[Result "1/2-1/2"]
[ECO "A05"]
[WhiteElo "1696"]
[BlackElo "1779"]
[Annotator "NA RC"]
[PlyCount "52"]
[EventDate "2022.08.13"]
[EventCountry "POL"]
[SourceTitle "playchess.com"]
[Source "ChessBase"]
[SourceQuality "1"]
[TimeControl "40/5400+30:1800+30"]

1. Nf3 {[%emt 0:00:04]} Nf6 {[%emt 0:00:06]} 2. g3 {[%emt 0:00:05]} e6 {[%emt 0:00:07]} 3. Bg2 {[%emt 0:00:29]} d5 {[%emt 0:00:07]} 4. d4 {[%emt 0:00:20]} Be7 {[%emt 0:00:07]} 5. O-O {[%emt 0:00:07]} O-O {[%emt 0:00:17]} 6. Nc3 {[%emt 0:01:46]} a5 {[%emt 0:06:28]} 7. a3 {[%emt 0:13:07]} Bd7 {[%emt 0:07:35]} 8. Ne5 {[%emt 0:06:11]} Bc6 {[%emt 0:01:24]} 9. Bg5 {[%emt 0:03:40]} h6 {[%emt 0:02:02]} 10. Bxf6 {[%emt 0:00:05]} Bxf6 {[%emt 0:00:06]} 11. Nxc6 {[%emt 0:00:39]} Nxc6 {[%emt 0:00:13]} 12. e3 {[%emt 0:00:02]} Na7 {[%emt 0:07:34]} 13. Qd3 {[%emt 0:06:52]} c6 {[%emt 0:05:35]} 14. Rfb1 {[%emt 0:12:39]} b5 {[%emt 0:05:19]} 15. b4 {[%emt 0:00:46]} a4 {[%emt 0:00:11]} 16. Ne2 {[%emt 0:00:27]} Be7 {[%emt 0:05:20]} 17. Re1 {[%emt 0:01:25]} Bd6 {[%emt 0:01:13]} 18. c3 {[%emt 0:14:32]} Nc8 {[%emt 0:01:40]} 19. e4 {[%emt 0:05:26]} f5 {[%emt 0:13:16]} 20. exd5 {[%emt 0:07:39]} exd5 {[%emt 0:00:10]} 21. Qf3 {[%emt 0:02:09]} Nb6 {[%emt 0:06:23]} 22. Nf4 {[%emt 0:00:39]} Bxf4 {[%emt 0:00:20]} 23. Qxf4 {[%emt 0:00:16]} Nc4 {[%emt 0:03:49]} 24. Bf1 {[%emt 0:02:54]} g5 {[%emt 0:01:53]} 25. Qf3 {[%emt 0:01:36]} Nd2 {[%emt 0:05:53]} 26. Qd3 {[%emt 0:01:51]} Nxf1 1/2-1/2

[Event "58th Akiba Rubinstein B 2022"]
[Site "Polanica-Zdroj"]
[Date "2022.08.20"]
[Round "8.7"]
[White "Bartlomowicz, Jakub"]
[Black "Jaworski, Tymon"]
[Result "0-1"]
[ECO "C77"]
[WhiteElo "1922"]
[BlackElo "1701"]
[Annotator "NA RC"]
[PlyCount "68"]
[EventDate "2022.08.13"]
[EventCountry "POL"]
[SourceTitle "playchess.com"]
[Source "ChessBase"]
[SourceQuality "1"]
[TimeControl "40/5400+30:1800+30"]

1. e4 {[%emt 0:00:02]} e5 {[%emt 0:00:07]} 2. Nf3 {[%emt 0:00:08]} Nc6 {[%emt 0:00:05]} 3. Bb5 {[%emt 0:00:08]} a6 {[%emt 0:00:06]} 4. Ba4 {[%emt 0:00:03]} Nf6 {[%emt 0:00:06]} 5. d3 {[%emt 0:00:04]} d6 {[%emt 0:02:00]} 6. c3 {[%emt 0:00:18]} Be7 {[%emt 0:03:03]} 7. O-O {[%emt 0:02:06]} O-O {[%emt 0:01:05]} 8. h3 {[%emt 0:01:01]} b5 {[%emt 0:00:23]} 9. Bc2 {[%emt 0:00:40]} Bb7 {[%emt 0:00:18]} 10. Nbd2 {[%emt 0:00:55]} Re8 {[%emt 0:03:12]} 11. Re1 {[%emt 0:00:44]} Bf8 12. a4 {[%emt 0:08:35]} d5 {[%emt 0:05:06]} 13. exd5 {[%emt 0:01:13]} Qxd5 {[%emt 0:00:31]} 14. axb5 {[%emt 0:00:46]} axb5 {[%emt 0:00:18]} 15. Rxa8 {[%emt 0:00:23]} Bxa8 {[%emt 0:06:50]} 16. Ne4 {[%emt 0:01:38]} Nxe4 {[%emt 0:00:45]} 17. Rxe4 {[%emt 0:00:04]} Qd6 {[%emt 0:10:41]} 18. Qe2 {[%emt 0:09:57]} Nd8 {[%emt 0:10:41]} 19. Re3 {[%emt 0:01:27]} Qg6 {[%emt 0:04:06]} 20. d4 {[%emt 0:02:51]} f5 {[%emt 0:16:47]} 21. Rxe5 {[%emt 0:04:02]} Rxe5 {[%emt 0:04:18]} 22. dxe5 {[%emt 0:00:01]} Be7 {[%emt 0:05:11]} 23. Qd3 {[%emt 0:03:29]} Be4 {[%emt 0:01:23]} 24. Qe2 {[%emt 0:00:50]} Ba8 {[%emt 0:03:29]} 25. Bb3+ {[%emt 0:07:25]} Kf8 {[%emt 0:02:54]} 26. Qd1 {[%emt 0:08:34]} c5 {[%emt 0:05:47]} 27. Bd5 {[%emt 0:00:24]} Nc6 {[%emt 0:05:26]} 28. Bf4 {[%emt 0:10:05]} Qe8 {[%emt 0:05:28]} 29. Qd3 {[%emt 0:00:02]} Qd7 {[%emt 0:00:36]} 30. e6 {[%emt 0:00:14]} Qd8 {[%emt 0:01:36]} 31. Qxf5+ {[%emt 0:00:06]} Bf6 {[%emt 0:00:11]} 32. e7+ {[%emt 0:04:03]} Nxe7 {[%emt 0:00:21]} 33. Qxh7 {[%emt 0:03:15]} Qxd5 {[%emt 0:00:08]} 34. Qh8+ {[%emt 0:00:10]} Ng8 {[%emt 0:00:19]} 0-1

[Event "58th Akiba Rubinstein B 2022"]
[Site "Polanica-Zdroj"]
[Date "2022.08.20"]
[Round "8.8"]
[White "Halhoul, Adam"]
[Black "Twardowski, Hubert"]
[Result "0-1"]
[ECO "A65"]
[WhiteElo "1672"]
[BlackElo "1849"]
[Annotator "NA RC"]
[PlyCount "108"]
[EventDate "2022.08.13"]
[EventCountry "POL"]
[SourceTitle "playchess.com"]
[Source "ChessBase"]
[SourceQuality "1"]
[TimeControl "40/5400+30:1800+30"]

1. d4 {[%emt 0:00:30]} Nf6 {[%emt 0:00:08]} 2. c4 {[%emt 0:00:06]} e6 {[%emt 0:00:15]} 3. Nc3 {[%emt 0:00:07]} c5 {[%emt 0:00:08]} 4. d5 {[%emt 0:00:09]} exd5 {[%emt 0:01:23]} 5. cxd5 {[%emt 0:00:02]} d6 {[%emt 0:00:08]} 6. e4 {[%emt 0:00:05]} g6 {[%emt 0:00:29]} 7. h3 {[%emt 0:00:14]} Bg7 {[%emt 0:00:23]} 8. Nf3 {[%emt 0:00:06]} O-O {[%emt 0:00:19]} 9. Bd3 {[%emt 0:00:04]} Re8 {[%emt 0:00:36]} 10. O-O {[%emt 0:00:51]} Na6 {[%emt 0:06:04]} 11. Re1 {[%emt 0:00:11]} Nc7 {[%emt 0:07:59]} 12. Bf4 {[%emt 0:01:00]} b6 {[%emt 0:01:18]} 13. Bh2 {[%emt 0:03:00]} a6 {[%emt 0:05:44]} 14. a4 {[%emt 0:00:43]} Rb8 {[%emt 0:01:47]} 15. Bf1 {[%emt 0:01:06]} b5 {[%emt 0:10:37]} 16. e5 {[%emt 0:04:21]} dxe5 {[%emt 0:00:05]} 17. d6 {[%emt 0:00:27]} Ne6 {[%emt 0:01:24]} 18. axb5 {[%emt 0:01:51]} axb5 {[%emt 0:01:10]} 19. Bxb5 {[%emt 0:01:10]} Bd7 {[%emt 0:01:16]} 20. Bxd7 {[%emt 0:01:48]} Nxd7 {[%emt 0:00:33]} 21. Bxe5 {[%emt 0:03:27]} Nxe5 {[%emt 0:08:10]} 22. Nxe5 {[%emt 0:00:40]} Nd4 {[%emt 0:00:23]} 23. Nc4 {[%emt 0:09:40]} Rxe1+ {[%emt 0:03:07]} 24. Qxe1 {[%emt 0:00:02]} Nc2 {[%emt 0:00:43]} 25. Qd1 {[%emt 0:00:21]} Nxa1 {[%emt 0:00:36]} 26. Qxa1 {[%emt 0:00:02]} Bd4 {[%emt 0:04:30]} 27. Qe1 {[%emt 0:06:21]} Qe8 {[%emt 0:14:37]} 28. Qxe8+ {[%emt 0:06:32]} Rxe8 {[%emt 0:00:04]} 29. Nd5 {[%emt 0:00:04]} Rd8 {[%emt 0:14:46]} 30. Ne7+ {[%emt 0:01:09]} Kf8 {[%emt 0:00:05]} 31. Nc6 {[%emt 0:00:09]} Rd7 {[%emt 0:00:11]} 32. Nxd4 {[%emt 0:02:01]} cxd4 {[%emt 0:00:09]} 33. Kf1 {[%emt 0:00:05]} Rb7 {[%emt 0:04:17]} 34. Ke2 {[%emt 0:01:58]} Rb3 {[%emt 0:00:21]} 35. Kd2 {[%emt 0:00:26]} d3 {[%emt 0:00:10]} 36. f4 {[%emt 0:05:07]} Ke8 {[%emt 0:04:58]} 37. Ke3 {[%emt 0:00:56]} Kd7 {[%emt 0:00:56]} 38. Kd2 {[%emt 0:00:17]} Ke6 {[%emt 0:00:12]} 39. g4 {[%emt 0:01:25]} f6 {[%emt 0:04:50]} 40. h4 {[%emt 0:00:00]} f5 {[%emt 0:00:00]} 41. g5 {[%emt 0:05:12]} Kd7 {[%emt 0:03:56]} 42. Ne5+ {[%emt 0:02:05]} Kxd6 {[%emt 0:00:08]} 43. Nxd3 {[%emt 0:00:03]} Kd5 {[%emt 0:00:39]} 44. Kc2 {[%emt 0:02:50]} Rb7 {[%emt 0:02:51]} 45. Kd2 {[%emt 0:00:53]} Kd4 {[%emt 0:00:55]} 46. b4 {[%emt 0:01:14]} Kc4 {[%emt 0:08:06]} 47. Ke3 {[%emt 0:01:07]} Rb6 {[%emt 0:03:45]} 48. Ne5+ {[%emt 0:03:26]} Kxb4 {[%emt 0:00:16]} 49. Nd3+ {[%emt 0:00:34]} Kc3 {[%emt 0:00:12]} 50. Ne5 {[%emt 0:00:04]} Re6 {[%emt 0:00:38]} 51. Kf3 {[%emt 0:00:33]} Kd4 {[%emt 0:00:14]} 52. h5 {[%emt 0:00:50]} Rxe5 {[%emt 0:00:13]} 53. fxe5 {[%emt 0:00:02]} Kxe5 {[%emt 0:00:08]} 54. hxg6 {[%emt 0:00:09]} hxg6 {[%emt 0:00:04]} 0-1

[Event "58th Akiba Rubinstein B 2022"]
[Site "Polanica-Zdroj"]
[Date "2022.08.20"]
[Round "8.9"]
[White "Rogala, Milosz"]
[Black "Jankowski, Aleksander"]
[Result "1/2-1/2"]
[ECO "B30"]
[WhiteElo "1837"]
[BlackElo "1715"]
[Annotator "NA"]
[PlyCount "43"]
[EventDate "2022.08.13"]
[EventCountry "POL"]
[SourceTitle "playchess.com"]
[Source "ChessBase"]
[SourceQuality "1"]
[TimeControl "40/5400+30:1800+30"]

1. e4 {[%emt 0:00:04]} c5 {[%emt 0:00:06]} 2. Nf3 {[%emt 0:00:16]} Nc6 {[%emt 0:00:04]} 3. Nc3 {[%emt 0:00:37]} e6 {[%emt 0:03:55]} 4. d4 {[%emt 0:00:09]} d5 {[%emt 0:01:19]} 5. exd5 {[%emt 0:07:02]} exd5 {[%emt 0:00:28]} 6. Be3 {[%emt 0:00:44]} c4 {[%emt 0:02:23]} 7. g3 {[%emt 0:03:19]} Nf6 {[%emt 0:00:26]} 8. Bg5 {[%emt 0:02:20]} Bb4 {[%emt 0:03:47]} 9. Bxf6 {[%emt 0:03:13]} Qxf6 {[%emt 0:04:45]} 10. Bg2 {[%emt 0:00:32]} O-O {[%emt 0:02:03]} 11. O-O {[%emt 0:01:13]} Be6 {[%emt 0:07:23]} 12. Ne2 {[%emt 0:07:46]} Rfe8 {[%emt 0:11:42]} 13. Nf4 {[%emt 0:11:02]} Rad8 {[%emt 0:09:42]} 14. c3 {[%emt 0:03:49]} Bd6 {[%emt 0:03:16]} 15. Nxe6 {[%emt 0:00:10]} Rxe6 {[%emt 0:01:37]} 16. Re1 {[%emt 0:00:41]} Bc7 {[%emt 0:03:08]} 17. Qd2 {[%emt 0:02:08]} Rde8 {[%emt 0:14:12]} 18. Rxe6 {[%emt 0:09:30]} Qxe6 {[%emt 0:02:28]} 19. Re1 {[%emt 0:00:22]} Qd7 {[%emt 0:00:08]} 20. Rxe8+ {[%emt 0:02:14]} Qxe8 {[%emt 0:00:02]} 21. Qe1 {[%emt 0:00:16]} Kf8 {[%emt 0:07:54]} 22. Qxe8+ {[%emt 0:12:40]} 1/2-1/2